bitfinex-derivatives/quotes_ETHF0:USTF0_20250107
["timestamp","ask_amount","ask_price","bid_price","bid_amount"]
[1736283584379,3.2078,3396.8,3395.7,1.388]
[1736283584578,3.2078,3396.4,3395.4,3.2078]
[1736283584783,0.29469,3395.5,3395.4,3.2078]
[1736283585377,3.2078,3395.6,3395.0,1.388]
[1736283585578,3.2078,3395.5,3395.0,1.388]
[1736283586182,1.9812,3395.9,3395.4,0.2947]
[1736283586183,2.27587,3395.9,3395.4,0.2947]
[1736283586482,3.94429,3396.7,3395.6,2.84685674]
[1736283586685,0.29465,3396.0,3395.6,3.14153674]
[1736283586883,3.2078,3396.1,3395.2,2.84685674]
[1736283587080,3.2078,3396.2,3395.6,2.84685674]
[1736283587386,3.21664,3396.8,3395.6,2.84685674]
[1736283587681,1.992,3396.9,3395.6,2.84685674]
[1736283587682,3.21664,3396.7,3395.6,2.84685674]
[1736283587890,3.2078,3396.6,3395.7,0.29468]
[1736283588178,0.29469,3395.6,3395.5,1.388]
[1736283588489,3.2078,3396.4,3395.5,1.388]
[1736283588788,3.2078,3396.4,3395.6,2.84685674]
[1736283589184,0.29465,3396.1,3395.6,2.84685674]
[1736283589383,0.29463,3396.2,3395.6,2.84685674]
[1736283589688,0.29463,3396.3,3395.6,2.84685674]
[1736283589889,0.29463,3396.3,3395.9,0.29465]
[1736283590186,3.2078,3396.4,3395.6,2.84685674]
[1736283590393,3.2078,3396.4,3396.1,0.29464]
[1736283590583,3.50242,3396.4,3396.0,0.29465]
[1736283590778,3.50242,3396.4,3396.1,1.388]
[1736283591082,5.1308,3397.0,3396.1,1.388]
[1736283591288,0.29462,3396.4,3396.1,1.388]
[1736283591483,5.1308,3397.0,3396.1,1.388]
[1736283591683,5.1308,3397.0,3395.8,3.2078]
[1736283591882,3.21664,3396.3,3394.9,2.0848]
[1736283592081,3.2078,3396.0,3395.2,2.84685674]
[1736283592388,0.29467,3395.8,3395.5,0.29469]
[1736283592588,0.29468,3395.7,3395.2,2.84685674]
[1736283592790,0.29468,3395.7,3395.4,0.2947]
[1736283592986,0.29467,3395.8,3395.4,0.2947]
[1736283593285,0.29468,3395.7,3395.4,0.29469]
[1736283593486,3.2078,3396.1,3396.0,0.29465]
[1736283593691,0.29463,3396.3,3396.0,4.23385674]
[1736283593888,3.21664,3396.8,3396.0,4.23385674]
[1736283594290,3.2078,3396.6,3396.0,4.23385674]
[1736283594488,0.29458,3396.8,3396.2,0.29463]
[1736283594690,0.29461,3396.6,3396.2,0.29463]
[1736283595093,0.29461,3396.5,3396.2,0.29463]
[1736283595285,0.29462,3396.3,3396.2,3.2078]
[1736283595489,0.29452,3397.6,3396.8,0.29458]
[1736283595783,0.29452,3397.6,3396.2,7.44165674]
[1736283595784,0.29452,3397.6,3397.1,6.34920674]
[1736283595988,3.2078,3397.8,3397.5,3.14137674]
[1736283596183,3.2078,3397.8,3397.6,1.387]
[1736283596688,0.2945,3397.7,3397.6,1.387]
[1736283596896,3.2078,3397.8,3397.5,2.84685674]
[1736283597095,0.2945,3397.7,3397.6,1.387]
[1736283597793,3.21664,3397.8,3397.1,2.84685674]
[1736283598090,3.21664,3397.8,3396.6,3.2078]
[1736283598091,3.2078,3397.6,3396.7,2.84685674]
[1736283598295,0.29454,3397.3,3397.2,1.386]
[1736283598605,3.2078,3397.6,3397.5,0.29452]
[1736283598783,3.2078,3398.0,3397.5,4.23285674]
[1736283599191,0.29449,3397.9,3397.4,0.29453]
[1736283599392,0.2945,3397.8,3397.5,1.386]
[1736283599688,3.2078,3398.0,3397.5,1.386]
[1736283599898,3.50231,3397.6,3397.5,1.386]
[1736283600193,3.2078,3397.6,3397.1,2.84685674]
[1736283600386,3.2078,3397.2,3396.2,4.23285674]
[1736283600587,3.2078,3397.2,3397.0,2.84685674]
[1736283600895,0.73618,3398.1,3397.0,2.84685674]
[1736283600896,3.2078,3397.6,3397.0,4.23285674]
[1736283601090,3.2078,3397.6,3397.4,2.84685674]
[1736283601399,0.29458,3396.9,3396.5,3.14145674]
[1736283601697,3.9441,3397.6,3396.3,1.386]
[1736283601698,3.2078,3397.0,3396.3,1.386]
[1736283601888,3.2078,3396.6,3395.7,6.05465674]
[1736283602085,3.2078,3396.2,3395.8,1.386]
[1736283602289,0.29463,3396.3,3396.1,2.84685674]
[1736283602495,0.29461,3396.5,3396.1,2.84685674]
[1736283602796,0.29465,3396.0,3395.9,1.386]
[1736283602986,3.2078,3396.2,3395.7,2.84685674]
[1736283603389,0.29467,3395.8,3395.7,2.84685674]
[1736283603894,3.2078,3395.8,3395.3,2.84685674]
[1736283604097,1.9986,3396.5,3394.7,1.386]
[1736283604098,0.29475,3394.8,3394.7,1.386]
[1736283604499,6.42444,3395.3,3394.7,1.386]
[1736283604701,0.29473,3395.1,3395.0,2.84685674]
[1736283604991,0.29473,3395.1,3394.8,0.29475]
[1736283605299,3.50248,3395.7,3395.4,0.2947]
[1736283605595,3.2078,3396.2,3395.5,2.84685674]
[1736283605797,3.50243,3396.2,3395.8,0.29466]
[1736283605995,0.29463,3396.3,3396.0,2.84685674]
[1736283606197,0.29465,3396.0,3395.9,1.386]
[1736283606394,3.21664,3396.0,3395.2,4.23285674]
[1736283606693,0.29471,3395.3,3395.2,1.386]
[1736283606893,0.29474,3395.0,3394.8,1.386]
[1736283607098,3.2078,3394.9,3394.3,4.23285674]
[1736283607499,3.2078,3394.9,3394.7,2.84685674]
[1736283607694,3.2078,3394.9,3394.7,3.14161674]
[1736283607896,3.2078,3395.5,3394.7,6.05465674]
[1736283608090,3.2078,3395.5,3394.7,2.84685674]
[1736283608499,3.2078,3395.5,3394.7,3.2078]
[1736283608700,0.29473,3395.2,3394.4,0.29479]
[1736283608896,0.29473,3395.1,3394.8,0.29475]
[1736283609092,3.2078,3395.1,3394.5,1.386]
[1736283609300,0.29477,3394.7,3394.5,1.386]
[1736283609700,0.29475,3394.9,3394.6,0.29477]
[1736283609900,0.29475,3394.9,3394.5,1.386]
[1736283610097,0.29476,3394.8,3394.5,1.68078]
[1736283610300,0.29474,3395.0,3394.7,0.29476]
[1736283610604,3.2078,3395.1,3394.5,1.386]
[1736283610806,3.2078,3395.1,3394.7,0.29476]
[1736283610998,3.2078,3395.1,3394.5,1.386]
[1736283611305,0.29477,3394.6,3394.5,1.386]
[1736283611701,2.21307,3394.6,3394.5,1.386]
[1736283612103,0.29482,3394.0,3393.9,3.2078]
[1736283612296,3.2078,3394.3,3393.8,1.386]
[1736283612497,0.29482,3394.1,3393.8,1.68084]
[1736283612700,3.2078,3394.3,3393.8,1.386]
[1736283613002,3.2078,3394.3,3393.3,12.0478]
[1736283613003,3.2078,3393.9,3393.4,1.386]
[1736283613507,0.29487,3393.5,3393.4,1.386]
[1736283613707,0.29486,3393.6,3393.4,1.386]
[1736283613908,3.2078,3393.9,3393.4,1.386]
[1736283614206,3.2078,3393.9,3393.8,0.29484]
[1736283614505,3.2078,3393.9,3393.8,1.68084]
[1736283614712,3.2078,3393.9,3393.8,1.386]
[1736283614911,3.50263,3393.9,3393.8,1.386]
[1736283615598,0.29488,3393.4,3393.3,8.84]
[1736283615797,0.29488,3393.4,3393.3,10.227]
[1736283616297,0.29487,3393.5,3393.3,1.68188]
[1736283616500,3.2078,3393.9,3393.3,1.387]
[1736283616702,3.21664,3394.3,3393.6,3.2078]
[1736283616910,0.29477,3394.7,3393.8,0.73711]
[1736283617104,2.28136281,3395.4,3394.3,2.84685674]
[1736283617310,2.28136281,3395.4,3394.4,4.5948]
[1736283617605,2.28136281,3395.4,3394.8,3.2078]
[1736283617811,2.28136281,3395.4,3394.7,6.05465674]
[1736283618111,2.28136281,3395.4,3394.5,1.9958]
[1736283618412,7.2497,3395.5,3394.8,3.2078]
[1736283618805,3.2078,3395.1,3394.4,4.5948]
[1736283618999,0.29474,3395.0,3394.4,1.387]
[1736283619201,3.21664,3395.3,3394.4,1.387]
[1736283619202,3.21664,3395.3,3394.4,4.5948]
[1736283619508,3.21664,3395.3,3394.9,0.29474]
[1736283619810,3.21664,3395.3,3394.4,4.5948]
[1736283620006,0.29471,3395.4,3394.8,3.2078]
[1736283620309,7.2497,3395.5,3394.8,3.2078]
[1736283621005,0.29475,3394.9,3394.8,3.2078]
[1736283622404,0.7369,3394.8,3394.4,1.387]
[1736283622607,3.50258,3394.5,3394.4,1.387]
[1736283623509,3.50258,3394.5,3393.2,0.73724]
[1736283623510,0.29484,3393.8,3393.7,1.387]
[1736283625105,0.29484,3393.8,3393.7,1.68185]
[1736283625312,0.29486,3393.6,3393.5,0.29486]
[1736283625509,0.29486,3393.6,3393.5,1.387]
[1736283625708,0.29489,3393.2,3393.1,3.5027]
[1736283626009,0.29495,3392.6,3392.3,3.2078]
[1736283626307,3.2078,3393.3,3392.5,10.23]
[1736283626512,0.29492,3393.0,3392.9,0.29492]
[1736283626905,3.2078,3393.3,3392.5,8.843]
[1736283627206,0.29493,3392.9,3392.8,0.29493]
[1736283627407,0.29493,3392.9,3392.6,1.387]
[1736283627712,0.29493,3392.8,3392.6,1.387]
[1736283627916,0.29494,3392.7,3392.6,1.387]
[1736283628115,3.94504,3393.3,3392.6,1.387]
[1736283628308,3.94504,3393.3,3392.6,1.68194]
[1736283628511,3.94504,3393.3,3392.6,1.387]
[1736283628718,0.29493,3392.8,3392.5,8.843]
[1736283629019,3.94504,3393.3,3392.6,1.391]
[1736283629317,3.2078,3393.3,3392.8,0.29493]
[1736283629511,0.29492,3392.9,3392.8,0.29493]
[1736283630116,0.2949,3393.1,3393.0,0.29491]
[1736283630417,5.78397281,3394.2,3394.0,0.29482]
[1736283630709,2.28136281,3394.2,3394.1,0.29482]
[1736283631908,0.29478,3394.5,3394.3,0.29479]
[1736283632105,3.2078,3394.7,3394.0,1.391]
[1736283632313,0.2948,3394.3,3394.1,0.29481]
[1736283632711,0.29482,3394.1,3394.0,1.391]
[1736283632908,3.2078,3394.2,3394.0,1.391]
[1736283633116,3.2078,3394.7,3394.0,1.391]
[1736283633311,0.29482,3394.1,3394.0,1.391]
[1736283633709,1.9672,3394.1,3393.2,0.24058603]
[1736283633921,0.29488,3393.4,3393.3,1.391]
[1736283634107,0.29488,3393.4,3393.3,1.68589]
[1736283634312,0.29488,3393.4,3393.3,1.391]
[1736283636126,0.29487,3393.5,3393.4,0.29487]
[1736283636308,0.29488,3393.4,3393.3,1.391]
[1736283636511,0.29488,3393.4,3393.3,1.68589]
[1736283637107,1.9674,3393.7,3393.3,1.391]
[1736283637314,3.2078,3394.0,3393.3,1.391]
[1736283637315,3.2078,3394.0,3393.9,0.29483]
[1736283637819,3.50262,3394.0,3393.9,0.29483]
[1736283638216,3.2078,3394.0,3393.3,1.391]
[1736283638422,0.29486,3393.6,3393.5,0.29486]
[1736283638716,0.29488,3393.4,3393.3,1.391]
[1736283640118,0.29492,3392.9,3392.8,3.2078]
[1736283640418,0.29492,3392.9,3392.8,4.89373]
[1736283640920,0.29492,3392.9,3392.8,4.5988]
[1736283641316,0.29495,3392.6,3392.5,8.843]
[1736283641521,3.2078,3392.9,3391.7,1.9464]
[1736283641720,3.21664,3393.4,3391.9,1.686]
[1736283641721,0.295,3392.0,3391.9,1.686]
[1736283642020,0.295,3392.0,3391.7,1.9464]
[1736283642323,3.2078,3391.9,3391.3,1.391]
[1736283642513,0.29505,3391.5,3391.3,1.68606]
[1736283642720,0.29505,3391.5,3391.3,1.68605]
[1736283642915,3.2078,3391.5,3391.4,1.391]
[1736283643225,0.29511,3390.7,3390.6,1.391]
[1736283643419,0.73763,3391.4,3390.3,1.391]
[1736283643420,0.29514,3390.4,3390.3,1.391]
[1736283643817,0.29514,3390.5,3390.3,1.391]
[1736283644416,3.2078,3391.4,3390.3,8.21902908]
[1736283644621,2.0386,3392.2,3391.9,0.29501]
[1736283644622,5.54138,3392.2,3391.9,0.29501]
[1736283644817,0.7373,3393.0,3392.0,1.391]
[1736283645023,0.7373,3393.0,3392.1,1.391]
[1736283645024,4.56272562,3392.3,3392.1,1.391]
[1736283645223,4.56272562,3392.3,3392.1,1.68599]
[1736283645423,4.85769562,3392.3,3392.1,1.68599]
[1736283645625,4.85769562,3392.3,3392.1,1.391]
[1736283645925,4.56272562,3392.3,3392.1,1.391]
[1736283646322,4.56272562,3392.3,3392.2,3.50278]
[1736283646516,2.58332162,3393.4,3393.1,0.2949]
[1736283646822,2.28844162,3393.4,3393.3,0.29489]
[1736283647016,2.28844162,3393.4,3393.3,1.68589]
[1736283647827,5.1854,3394.4,3393.3,1.68589]
[1736283648025,0.29481,3394.2,3393.5,3.2078]
[1736283648318,5.1854,3394.4,3393.5,3.2078]
[1736283648521,3.2078,3394.4,3393.5,3.2078]
[1736283648718,2.28844162,3394.6,3394.3,0.29479]
[1736283648925,0.29478,3394.5,3394.4,1.391]
[1736283649123,3.50258,3394.5,3394.4,1.391]
[1736283650222,3.2078,3394.5,3394.4,1.391]
[1736283650525,3.2078,3394.5,3394.4,1.68579]
[1736283651430,3.2078,3394.9,3394.4,1.391]
[1736283651624,2.28844162,3395.2,3394.5,0.29478]
[1736283651935,3.2078,3395.4,3395.1,0.29473]
[1736283652129,3.2078,3395.4,3394.8,3.2078]
[1736283652130,3.2078,3395.4,3395.2,1.391]
[1736283652626,0.29471,3395.3,3395.2,1.391]
[1736283653227,3.2078,3395.4,3395.2,1.391]
[1736283653228,3.50251,3395.4,3395.2,1.391]
[1736283653434,3.2078,3395.4,3395.2,1.391]
[1736283653627,0.29471,3395.3,3395.2,1.391]
[1736283654634,3.2078,3395.4,3395.2,1.391]
[1736283654635,3.50251,3395.4,3395.2,1.391]
[1736283654823,0.29471,3395.3,3395.2,1.391]
[1736283655219,0.29475,3394.9,3394.4,3.21902908]
[1736283655427,0.2948,3394.4,3394.3,1.391]
[1736283655626,3.2078,3394.6,3394.3,1.391]
[1736283656035,0.29479,3394.4,3394.3,1.391]
[1736283656427,0.29478,3394.5,3394.3,1.391]
[1736283657030,0.29479,3394.4,3394.3,1.391]
[1736283657427,0.29486,3393.6,3393.5,8.848]
[1736283657733,0.29486,3393.6,3393.5,1.387]
[1736283658431,3.2078,3393.7,3393.6,0.29486]
[1736283659340,1.9552,3394.5,3393.5,4.5948]
[1736283659341,2.28844162,3394.2,3393.5,4.5948]
[1736283659533,2.28844162,3394.2,3394.1,0.29482]
[1736283659727,2.28844162,3394.2,3393.9,3.2078]
[1736283659933,2.28844162,3394.2,3394.1,0.29482]
[1736283660136,0.29483,3394.0,3393.6,0.29485]
[1736283660333,2.28844162,3394.2,3393.5,3.2078]
[1736283660535,0.29481,3394.2,3393.9,0.29483]
[1736283660728,5.163,3394.5,3393.7,1.387]
[1736283660930,5.163,3394.5,3393.1,4.1588]
[1736283660931,3.2078,3394.1,3393.1,4.1588]
[1736283661134,0.29484,3393.9,3393.2,1.387]
[1736283661331,3.2078,3393.9,3393.4,3.21902908]
[1736283661634,5.45778,3394.5,3394.2,0.2948]
[1736283661834,2.28844162,3394.7,3394.3,1.387]
[1736283662042,2.28844162,3394.7,3394.5,0.29478]
[1736283662229,2.28844162,3394.7,3394.3,1.387]
[1736283662633,2.28844162,3394.7,3394.5,0.29478]
[1736283662832,5.3342,3395.3,3394.5,3.21902908]
[1736283663032,0.29472,3395.2,3394.9,0.29474]
[1736283663441,0.29472,3395.2,3395.0,0.29474]
[1736283663738,0.29472,3395.2,3395.1,1.387]
[1736283664237,0.29478,3394.6,3394.4,3.2078]
[1736283664540,0.29477,3394.6,3394.5,1.387]
[1736283666043,1.9369,3394.8,3394.5,1.387]
[1736283666237,0.29477,3394.6,3394.5,1.387]
[1736283666540,1.9369,3394.8,3394.5,1.387]
[1736283666844,3.2078,3394.9,3394.5,1.387]
[1736283667030,0.29474,3395.0,3394.8,0.29476]
[1736283667236,3.21664,3395.1,3394.8,0.29476]
[1736283667439,0.29476,3394.8,3394.6,0.29477]
[1736283667641,3.21664,3395.1,3394.5,1.387]
[1736283667834,3.21664,3395.1,3394.7,0.29476]
[1736283668136,3.2078,3395.4,3394.9,3.2078]
[1736283668341,3.2078,3395.4,3394.5,7.81382908]
[1736283668641,0.29473,3395.1,3394.8,0.29475]
[1736283668841,0.29473,3395.1,3394.5,7.81382908]
[1736283668842,0.29472,3395.2,3394.9,1.68174]
[1736283669141,3.2078,3395.4,3394.9,1.387]
[1736283669343,0.29471,3395.3,3394.9,1.68174]
[1736283669636,0.29471,3395.3,3394.8,0.29475]
[1736283669843,3.2078,3395.0,3394.9,1.387]
[1736283670149,3.50254,3395.0,3394.9,1.387]
[1736283670835,3.50254,3395.0,3394.5,3.50258]
[1736283670836,0.29477,3394.6,3394.5,3.2078]
[1736283671033,3.21664,3394.6,3394.0,3.2078]
[1736283671233,0.29483,3393.9,3393.8,1.387]
[1736283671637,3.21664,3393.9,3393.3,1.387]
[1736283671835,0.29488,3393.4,3393.3,1.387]
[1736283672936,0.29493,3392.8,3392.7,4.56203076]
[1736283673138,3.50273,3392.8,3392.7,4.56203076]
[1736283673337,0.29495,3392.5,3392.4,1.387]
[1736283673531,3.2078,3392.8,3392.4,1.387]
[1736283673736,3.2078,3392.8,3392.7,0.29494]
[1736283673944,5.0,3392.8,3391.4,4.56203076]
[1736283674244,0.73742,3392.4,3391.6,1.387]
[1736283674444,0.29502,3391.7,3391.6,1.387]
[1736283674742,3.2078,3392.3,3391.6,1.68203]
[1736283674743,0.29502,3391.8,3391.6,1.68203]
[1736283674941,0.29502,3391.8,3391.6,1.387]
[1736283675138,5.2203,3392.3,3391.6,1.387]
[1736283675447,3.2078,3393.2,3391.8,3.2078]
[1736283675742,2.28844162,3392.6,3392.5,0.29495]
[1736283675935,2.28844162,3392.6,3392.5,1.68195]
[1736283676540,3.43266243,3392.8,3392.7,0.29494]
[1736283676735,0.20646243,3392.8,3392.7,6.72176908]
[1736283676936,9.88696562,3394.2,3392.7,11.42682908]
[1736283677249,3.2078,3393.6,3392.7,6.42682908]
[1736283677544,3.2078,3393.6,3392.7,3.21902908]
[1736283677741,3.2078,3393.6,3392.5,1.387]
[1736283678142,0.29487,3393.5,3392.8,0.29493]
[1736283678341,0.29491,3393.1,3392.8,0.29493]
[1736283678543,0.29491,3393.1,3392.5,1.387]
[1736283678742,3.2078,3393.6,3392.5,1.387]
[1736283679044,3.2078,3393.6,3393.4,0.29487]
[1736283679245,3.50266,3393.6,3393.5,1.387]
[1736283679444,3.2078,3393.6,3393.5,1.387]
[1736283679643,3.2078,3393.6,3393.5,1.68187]
[1736283679843,4.56272562,3394.4,3394.3,0.2948]
[1736283680144,4.56272562,3394.4,3394.3,1.6818]
[1736283680342,0.29476,3394.8,3394.5,0.29478]
[1736283680543,0.29477,3394.6,3394.3,1.68179]
[1736283680742,0.29476,3394.7,3394.4,0.29479]
[1736283680943,3.2078,3394.8,3394.3,1.387]
[1736283681145,0.29479,3394.4,3394.3,1.387]
[1736283681342,3.2078,3394.4,3394.1,1.387]
[1736283681542,0.29481,3394.2,3394.1,1.387]
[1736283681948,0.29485,3393.7,3393.6,1.387]
[1736283682146,3.50265,3393.7,3393.6,1.387]
[1736283683250,0.29491,3393.1,3392.9,3.2078]
[1736283683439,3.2078,3393.7,3392.9,3.2078]
[1736283683642,0.29491,3393.1,3393.0,1.387]
[1736283684539,0.29489,3393.3,3393.1,0.2949]
[1736283684744,0.29489,3393.3,3393.0,1.387]
[1736283684745,0.29489,3393.3,3393.0,1.68191]
[1736283685150,0.29488,3393.4,3393.1,0.2949]
[1736283685349,0.2949,3393.1,3393.0,1.387]
[1736283687152,0.29489,3393.3,3393.0,1.6819]
[1736283687340,3.94494,3393.7,3393.4,0.29487]
[1736283687341,3.2078,3393.7,3393.4,0.29487]
[1736283687545,3.2078,3393.7,3393.0,1.387]
[1736283687855,0.29489,3393.3,3393.0,1.68191]
[1736283688041,3.2078,3393.7,3393.0,1.387]
[1736283688241,0.2949,3393.1,3392.9,3.2078]
[1736283688449,0.29491,3393.1,3393.0,1.386]
[1736283691745,3.2078,3393.2,3392.4,3.2078]
[1736283691951,5.2765,3393.2,3392.5,1.387]
[1736283692152,0.29495,3392.6,3392.5,1.68195]
[1736283692351,0.29495,3392.6,3392.5,1.387]
[1736283693349,0.29496,3392.4,3392.3,8.847]
[1736283693655,0.29496,3392.4,3392.3,10.234]
[1736283693849,0.29496,3392.4,3392.1,1.387]
[1736283693850,3.2078,3392.4,3392.1,1.387]
[1736283694053,0.29502,3391.7,3391.4,4.56203076]
[1736283694255,0.29501,3391.9,3391.7,0.29502]
[1736283694555,0.29502,3391.7,3391.6,4.88983]
[1736283694755,0.29501,3391.9,3391.7,0.29502]
[1736283694957,0.29502,3391.8,3391.7,0.29502]
[1736283695558,0.29502,3391.8,3391.6,4.88983]
[1736283695955,2.0451,3392.3,3391.6,4.88983]
[1736283695956,2.34007,3392.3,3391.6,4.5948]
[1736283696166,4.56272562,3392.9,3392.8,0.29493]
[1736283696354,4.85764562,3392.9,3392.8,1.387]
[1736283696656,4.56272562,3392.9,3392.8,1.68193]
[1736283696958,4.85764562,3392.9,3392.8,1.68193]
[1736283697360,0.29492,3392.9,3392.8,1.387]
[1736283697663,5.2765,3393.2,3392.8,1.387]
[1736283698257,4.56272562,3393.9,3393.8,0.29484]
[1736283698559,3.21664,3394.8,3393.9,0.29483]
[1736283698560,4.56272562,3394.0,3393.9,0.29483]
[1736283698760,1.50844116,3394.0,3393.9,0.29483]
[1736283698952,1.50844116,3394.0,3393.9,2.33233]
[1736283699150,1.50844116,3394.0,3393.9,0.29483]
[1736283699655,0.41024116,3394.0,3393.9,0.29483]
[1736283699856,5.70340703,3394.2,3393.9,5.0]
[1736283700056,5.70340703,3394.2,3394.1,0.29482]
[1736283700361,2.11,3395.5,3394.1,1.387]
[1736283700362,6.42444,3394.9,3394.1,1.387]
[1736283700657,3.21664,3394.9,3394.2,3.2078]
[1736283701159,3.2078,3395.3,3394.9,0.29474]
[1736283701160,0.29473,3395.2,3394.9,0.29474]
[1736283701359,3.50252,3395.3,3395.0,1.387]
[1736283701555,3.50251,3395.3,3395.1,0.29473]
[1736283701751,4.0466,3395.8,3395.0,1.387]
[1736283701957,0.29472,3395.3,3395.0,4.5948]
[1736283702160,0.2947,3395.4,3395.1,0.29472]
[1736283702357,4.0466,3395.8,3395.2,0.29472]
[1736283702358,2.4047,3395.5,3395.2,0.29472]
[1736283702558,0.29471,3395.3,3395.0,4.5948]
[1736283702762,0.29471,3395.4,3395.1,0.29473]
[1736283702964,2.11,3395.5,3395.0,4.88953]
[1736283702965,0.29472,3395.3,3395.0,4.88953]
[1736283703162,0.29472,3395.3,3395.1,0.29473]
[1736283703355,2.11,3395.5,3395.0,4.5948]
[1736283703556,2.4047,3395.5,3395.2,0.29472]
[1736283703758,2.11,3395.5,3395.0,4.5948]
[1736283704061,2.0662,3395.8,3395.0,4.5948]
[1736283704260,2.0662,3395.8,3395.0,7.81382908]
[1736283704465,2.0662,3395.8,3395.7,0.29468]
[1736283704659,2.0398,3396.3,3395.5,3.21902908]
[1736283704856,2.0398,3396.3,3396.0,0.29464]
[1736283705060,2.0398,3396.3,3395.8,3.2078]
[1736283705061,0.29462,3396.4,3396.1,1.386]
[1736283705366,5.70340703,3397.0,3396.2,3.2078]
[1736283705561,5.70340703,3397.0,3396.9,0.29457]
[1736283705757,5.70340703,3397.0,3396.9,1.68057]
[1736283706668,5.2251,3397.9,3396.9,1.386]
[1736283706969,2.0173,3397.9,3397.1,3.2078]
[1736283707166,0.29451,3397.7,3397.2,0.29454]
[1736283707367,2.0173,3397.9,3397.2,0.29455]
[1736283707663,2.31179,3397.9,3397.5,3.2078]
[1736283707862,2.0173,3397.9,3397.5,3.2078]
[1736283708070,0.29449,3397.8,3397.5,3.2078]
[1736283708265,2.0173,3397.9,3397.5,3.2078]
[1736283708461,2.0173,3397.9,3396.9,1.386]
[1736283708462,0.29449,3397.8,3397.0,0.29456]
[1736283708661,2.0173,3397.9,3397.0,0.29456]
[1736283708971,0.29448,3398.0,3397.7,3.2078]
[1736283709173,0.29447,3398.2,3397.8,1.68049]
[1736283709359,0.29447,3398.1,3397.8,1.386]
[1736283709569,3.2078,3398.3,3397.8,1.386]
[1736283710066,0.29449,3397.9,3397.8,1.386]
[1736283710271,6.42444,3398.7,3397.8,1.386]
[1736283710471,0.29447,3398.2,3397.8,1.68049]
[1736283710672,6.42444,3398.7,3397.8,1.386]
[1736283710869,0.29449,3397.9,3397.8,1.386]
[1736283711068,0.29448,3398.0,3397.8,1.386]
[1736283711370,0.29449,3397.9,3397.8,1.386]
[1736283711874,0.29449,3397.9,3397.5,0.29452]
[1736283712070,0.73607,3398.6,3397.6,1.385]
[1736283712368,3.2078,3398.3,3397.6,1.385]
[1736283712573,0.2945,3397.8,3397.6,1.385]
[1736283712773,0.2945,3397.7,3397.4,0.29452]
[1736283712963,0.29453,3397.4,3397.3,3.2078]
[1736283713167,0.29453,3397.4,3397.3,1.385]
[1736283714274,9.13204,3397.8,3397.3,1.385]
[1736283714470,0.29453,3397.4,3397.3,1.385]
[1736283717269,3.9593,3397.8,3397.7,0.2945]
[1736283717473,0.29449,3397.9,3397.7,0.2945]
[1736283717671,3.2078,3398.3,3397.7,0.2945]
[1736283717672,0.29446,3398.2,3398.0,0.29448]
[1736283717871,0.29446,3398.2,3398.1,1.384]
[1736283718071,3.2078,3398.3,3398.1,1.384]
[1736283718272,5.31524,3398.4,3398.1,1.384]
[1736283718469,2.39303,3398.4,3398.2,0.29445]
[1736283718773,3.50221,3398.8,3398.6,0.29443]
[1736283718975,0.29443,3398.6,3398.1,4.5918]
[1736283719173,0.29442,3398.7,3398.5,0.29443]
[1736283719772,0.29443,3398.6,3398.4,0.29444]
[1736283719972,3.2078,3398.8,3398.2,3.21902908]
[1736283720180,1.9491,3399.3,3398.2,6.42682908]
[1736283720479,1.9491,3399.3,3398.7,3.2078]
[1736283720480,0.29438,3399.2,3398.7,3.2078]
[1736283720779,3.2078,3399.5,3398.7,6.42682908]
[1736283720976,0.29439,3399.0,3398.7,6.42682908]
[1736283721179,3.2078,3399.5,3398.7,6.42682908]
[1736283721378,0.29438,3399.2,3399.0,0.29439]
[1736283721577,3.2078,3399.5,3398.7,3.2078]
[1736283721882,3.2078,3399.5,3399.0,0.29439]
[1736283721883,0.29438,3399.2,3399.0,0.29439]
[1736283722071,0.29437,3399.3,3399.2,0.29437]
[1736283722269,3.2078,3399.5,3398.8,1.384]
[1736283722473,0.29439,3399.0,3398.9,0.2944]
[1736283722677,0.29439,3399.1,3399.0,0.29439]
[1736283722878,0.29439,3399.1,3398.9,0.2944]
[1736283723079,0.29439,3399.0,3398.8,1.67841]
[1736283723276,3.2078,3399.5,3398.4,0.23418161]
[1736283723479,1.03048,3399.0,3398.5,1.384]
[1736283723787,0.29445,3398.6,3398.5,1.384]
[1736283724486,2.0335,3399.0,3398.5,1.67846]
[1736283724680,0.29445,3398.6,3398.5,1.384]
[1736283724874,3.2078,3398.7,3398.1,8.838]
[1736283725179,0.29451,3398.0,3397.9,3.2078]
[1736283725383,0.29452,3397.9,3397.8,1.384]
[1736283725586,0.29448,3398.3,3398.0,0.2945]
[1736283725883,3.9144,3398.6,3397.8,1.67852]
[1736283725884,0.2945,3398.1,3397.8,1.67852]
[1736283726085,0.29448,3398.4,3398.1,0.29449]
[1736283726280,0.29448,3398.4,3398.2,0.29449]
[1736283726473,3.9144,3398.6,3397.9,1.384]
[1736283726779,0.29449,3398.2,3398.0,1.384]
[1736283726981,0.2945,3398.1,3398.0,1.384]
[1736283727280,3.5023,3398.1,3397.5,3.2078]
[1736283727580,0.2946,3397.0,3396.8,0.53259464]
[1736283727787,0.29457,3397.3,3397.1,1.67858]
[1736283728079,0.29458,3397.2,3397.1,1.384]